Cogmind - Beta 15 @@@ ROGUE MODE // 2025.08.03 @ 13:15:29 Player: P9H Result: Destroyed by P-70 Sage with Tesla Rifle Performance ------------- Evolutions (6) 3000 Regions Visited (13) 2600 Robots Destroyed (117) 585 Value Destroyed (3875) 3875 Prototype IDs (25) 500 Alien Tech Used (0) 0 Bonus (344) 344 TOTAL SCORE: 10904 Bonus ------- High Alert Combat Kills 44 Aligned with FarCom 300 Cogmind --------- Core Integrity 0/1150 Matter 107/300 Energy 99/100 System Corruption 16% Temperature Cool (0) Movement Core (50) Location -4/Upper Caves Parts ------- > --- POWER (2) -------- (None) > --- PROPULSION (7) --- (None) > --- UTILITY (6) ------ (None) > --- WEAPON (4) ------- (None) > --- INVENTORY (5) ---- Huge Storage Unit KE Penetrator Peak State ------------ > --- POWER ------------ Neutrino Core Improved Fusion Compressor > --- PROPULSION ------- Nuclear Pulse Array Cooled Field Propulsion Drive Cooled Field Propulsion Drive Cooled Field Propulsion Drive Cooled Field Propulsion Drive Cooled Field Propulsion Drive > --- UTILITY ---------- Improved Heat Sink Advanced Heat Sink Advanced Coolant Injector Matter Compressor Core Analyzer > --- WEAPON ----------- Phase Gun KE Penetrator Hypervelocity Coil Gun Makeshift Hammer > --- INVENTORY -------- Fission Core Neutrino Core Field Propulsion Array Huge Storage Unit [Rating: 114] Favorites ----------- Power Neutrino Core Engine Ion Engine Power Core Neutrino Core Propulsion VTOL Module Treads Light Treads Wheel Compact Wheel Flight Unit VTOL Module Utility Large Storage Unit Device Advanced ECM Suite Storage Large Storage Unit Processor Targeting Computer Hackware Hacking Suite Protection Propulsion Shielding Weapon Makeshift Hammer Energy Gun Gatling Laser Ballistic Gun Minigun Ballistic Cannon Improved Light Cannon Launcher Grenade Launcher Impact Weapon Makeshift Hammer Build | -11 -10 -9 -9 -9 -8 -8 -7 -6 -5 -5 -5 -4 -4 ------- Run | Yrd Mat Mat Min Exi Min Mat Fac Fac Fac Upp Upp Fac Upp Slots Evolved 12 | . . 2 . . . 2 2 2 2 . . 2 . Power 1 | . . . . . . . . . 1 . . . . Propulsion 5 | . . 1 . . . 2 . . 1 . . 1 . Utility 4 | . . 1 . . . . 1 1 . . . 1 . Weapon 2 | . . . . . . . 1 1 . . . . . Parts Attached 93 | 6 11 8 1 4 2 7 4 5 16 3 . 26 . Power 20 | 1 2 1 . 1 . 1 1 . 8 . . 5 . Engine 8 | 1 2 1 . 1 . . . . 1 . . 2 . Core 12 | . . . . . . 1 1 . 7 . . 3 . Reactor . | . . . . . . . . . . . . . . Propulsion 29 | 2 2 4 . 3 . 3 1 . 3 2 . 9 . Treads 2 | 2 . . . . . . . . . . . . . Leg . | . . . . . . . . . . . . . . Wheel 3 | . 2 . . . . . . . . . . 1 . Hover . | . . . . . . . . . . . . . . Flight 24 | . . 4 . 3 . 3 1 . 3 2 . 8 . Utility 16 | 1 3 1 . . . . 1 1 2 . . 7 . Device 6 | . . . . . . . 1 . 1 . . 4 . Storage 3 | 1 1 . . . . . . . . . . 1 . Processor 4 | . 1 1 . . . . . . 1 . . 1 . Hackware 2 | . . . . . . . . 1 . . . 1 . Protection 1 | . 1 . . . . . . . . . . . . Artifact . | . . . . . . . . . . . . . . Weapon 28 | 2 4 2 1 . 2 3 1 4 3 1 . 5 . Energy Gun 4 | 1 . . . . . . . . 1 1 . 1 . Energy Cannon . | . . . . . . . . . . . . . . Ballistic Gun 8 | 1 . 1 . . . 1 . 1 1 . . 3 . Ballistic Cannon 6 | . 2 . . . . . . 2 1 . . 1 . Launcher 9 | . 2 1 1 . 2 2 . 1 . . . . . Special Weapon . | . . . . . . . . . . . . . . Impact Weapon 1 | . . . . . . . 1 . . . . . . Slashing Weapon . | . . . . . . . . . . . . . . Piercing Weapon . | . . . . . . . . . . . . . . Special Melee Weapon . | . . . . . . . . . . . . . . Unidentified Prototypes 2 | . . . . . . . . . . . . 2 . Parts Lost 51 | . 4 4 2 . 3 11 . . . 2 . 22 3 Power 7 | . 1 . 1 . . 2 . . . . . 3 . Propulsion 25 | . 1 3 . . 1 6 . . . 2 . 9 3 Utility 6 | . 1 . . . . . . . . . . 5 . Weapon 13 | . 1 1 1 . 2 3 . . . . . 5 . Highest Loss Streak 8 | . 3 1 2 . 3 6 . . . 2 . 8 3 To Critical Strikes 2 | . . 1 . . . . . . . 1 . . . Average Backups 11 | 3 12 14 14 13 9 8 14 14 14 11 10 10 2 Power 1 | . 2 1 1 . . . . 2 3 3 3 2 . Propulsion 2 | 2 2 4 5 4 3 . . 1 4 1 . 1 . Utility 3 | . 3 2 3 3 3 3 5 3 3 4 4 2 1 Weapon 4 | . 4 7 5 5 3 3 8 6 3 3 3 3 1 Tool/Special . | . . . . . . . . . . . . . . Unused Backups 36 | . 7 1 1 2 . . 5 8 5 . . 6 1 Power 4 | . 1 . . . . . . . 2 . . 1 . Propulsion 10 | . 2 . . 2 . . . 1 1 . . 4 . Utility 6 | . 1 . . . . . . 3 . . . 1 1 Weapon 16 | . 3 1 1 . . . 5 4 2 . . . . Tool/Special . | . . . . . . . . . . . . . . Average Slot Usage (%) 87 | . 94 94 89 93 99 69 64 78 81 89 94 84 41 Engine 5 | . 13 11 1 4 11 1 . . . . . 4 . Core 4 | . . . . . . 1 4 6 10 11 11 4 4 Treads 2 | . 15 . . . . . . . . . . . . Wheel 3 | . 11 10 . . . . . . . . . . . Flight 19 | . . 17 33 33 32 21 9 13 17 24 29 26 12 Device 3 | . . . . . . . 5 6 5 5 5 10 9 Storage 8 | . 14 11 11 11 11 9 7 6 5 5 5 5 4 Processor 13 | . 6 22 22 22 22 18 15 13 11 11 11 6 4 Hackware 2 | . . . . . . . . 4 5 5 5 4 . Energy Gun 2 | . 5 . . . . . . . . 9 11 2 . Ballistic Gun 5 | . 8 1 11 6 . . . 5 5 5 5 8 . Ballistic Cannon 5 | . 12 20 . . . . . . 8 1 . 2 . Launcher 5 | . . . 10 15 21 16 15 12 2 . . . . Impact Weapon 2 | . . . . . . . 4 6 5 5 5 3 4 Peak Build Rating 114 | 6 10 14 14 15 17 42 58 68 85 85 70 114 60 Average Rating 44 | 4 8 13 11 13 16 30 52 64 82 75 70 87 51 On Entrance 36 | . 6 10 14 12 15 17 42 58 66 85 70 70 49 Naked Turns 11 | . . . . . . . . . . . . . 11 Heaviest Build 75 | 13 33 35 34 29 30 32 40 48 71 68 64 75 20 Greatest Support 63 | 40 40 32 12 12 12 54 56 56 61 61 35 63 32 Greatest Overweight (x) 6 | . 1 4 2 2 2 2 . . 1 1 1 6 1 Average Overweight (x) . | . . 1 2 2 2 . . . . 1 1 . . Largest Inventory Capacity 15 | 8 15 15 15 15 15 15 15 15 15 15 15 15 5 Average Capacity 14 | 7 13 15 15 15 15 15 15 15 15 15 15 12 5 Most Carried 15 | 6 15 15 15 15 15 15 15 15 15 15 10 15 4 Average Carried 12 | 3 12 14 14 14 12 9 14 14 14 12 10 10 2 Final Capacity 15 | 8 15 15 15 15 15 15 15 15 15 15 15 5 5 Final Carried 15 | 4 15 15 15 15 14 15 15 15 15 10 10 4 2 Class Distribution -------------------- 52% | Mutant 18% | Skirmisher 14% | Bomber 5% | Hacker-Skirmisher 5% | Sprinter 3% | Gunner Dominant Class ---------------- Mutant | -10/Materials Mutant | -9/Materials Mutant | -9/Mines Mutant | -9/Exiles Mutant | -8/Mines Mutant | -8/Materials Mutant | -7/Factory Skirmisher | -6/Factory Skirmisher | -5/Factory Bomber | -5/Upper Caves Bomber | -5/Upper Caves Hacker-Skirmisher | -4/Factory Sprinter | -4/Upper Caves Resources | -11 -10 -9 -9 -9 -8 -8 -7 -6 -5 -5 -5 -4 -4 ----------- Run | Yrd Mat Mat Min Exi Min Mat Fac Fac Fac Upp Upp Fac Upp Matter Collected 3883 | 215 529 281 70 . 183 402 . 557 417 583 . 528 118 Remotely 366 | . . . . . . . . . . . . 366 . Salvage Created 3798 | . 610 290 126 . 34 470 . 530 388 113 . 1183 54 Parts 170 | . 26 18 6 . 3 31 . 19 11 7 . 49 . Haulers Intercepted . | . . . . . . . . . . . . . . Recyclers Shooed 7 | . . . . . . 1 1 3 . . . 2 . Parts Field Recycled . | . . . . . . . . . . . . . . Retrieved Matter . | . . . . . . . . . . . . . . Parts Self-Destructed 3 | . . . . . . . . . . 3 . . . Prevented 4 | . . . . . . . . . . 4 . . . Kills | -11 -10 -9 -9 -9 -8 -8 -7 -6 -5 -5 -5 -4 -4 ------- Run | Yrd Mat Mat Min Exi Min Mat Fac Fac Fac Upp Upp Fac Upp Combat Hostiles Destroyed 73 | . 15 9 3 . 5 14 . 4 6 2 . 15 . Guns 19 | . 5 1 . . . 1 . . 3 2 . 7 . Cannons 25 | . 7 8 . . . . . 2 3 . . 5 . AOE 29 | . 3 . 3 . 5 13 . 2 . . . 3 . Classes Destroyed 16 | . 6 2 2 . 1 2 . 1 1 . . . 1 Worker 13 | . 1 2 . . . 2 . 5 . . . 3 . Builder 8 | . . . 1 . . . . 4 . . . 3 . Tunneler 4 | . . . 1 . . 2 . . . . . 1 . Recycler 9 | . 1 . . . . 2 . 2 1 . . 3 . Operator 5 | . . 1 . . . 2 . 1 1 . . . . Watcher 5 | . 1 2 . . . 2 . . . . . . . Swarmer 14 | . 3 2 . . 4 . . . . . . 5 . Cutter 3 | . . . . . . . . 3 . . . . . Grunt 26 | . 9 3 3 . . 6 . 1 . . . 4 . Sentry 9 | . . 4 . . . 4 . . . . . 1 . Specialist 2 | . . . . . . 2 . . . . . . . Hunter 5 | . . . . . 1 1 . . . 2 . 1 . Programmer 10 | . . . . . . . . . 6 . . 4 . Heavy 1 | . . . . . . 1 . . . . . . . Subdweller 3 | . 3 . . . . . . . . . . . . Samaritan 1 | . . . . . . . . . . . . . 1 Best Kill Streak 7 | . 5 5 5 . 4 7 . 7 2 1 . 7 . Combat Bots Only 6 | . 4 4 3 . 4 6 . 4 2 1 . 5 . Max Kills in Single Turn 4 | . 2 2 2 . 4 2 . 2 1 1 . 3 1 Gunslinging . | . . . . . . . . . . . . . . Exploded 4 | . 1 . 2 . 4 2 . 1 . . . 2 . Melee . | . . . . . . . . . . . . . . Uniques/NPCs Destroyed . | . . . . . . . . . . . . . . Combat | -11 -10 -9 -9 -9 -8 -8 -7 -6 -5 -5 -5 -4 -4 -------- Run | Yrd Mat Mat Min Exi Min Mat Fac Fac Fac Upp Upp Fac Upp Hostile Shots Fired 546 | . 97 52 7 . 20 60 . 20 56 15 . 195 24 Missed 199 | . 23 18 1 . 6 30 . 5 23 5 . 74 14 Hits 347 | . 74 34 6 . 14 30 . 15 33 10 . 121 10 Melee 12 | . . . . . . . . 4 . . . 8 . Projectile 335 | . 74 34 6 . 14 30 . 11 33 10 . 113 10 AOE 8 | . . . . . . . . 3 2 . . 3 . Critical Strikes 12 | . . 1 1 . . 2 . . 3 1 . 4 . Damage Taken 7583 | . 893 378 137 . 244 795 . 426 805 183 . 3555 167 Core 1770 | . 171 71 11 . 29 253 . 37 40 . . 1064 94 Absorbed by Shields 35 | . . . . . . . . . . . . 35 . Redirected to Shielding 52 | . 52 . . . . . . . . . . . . Core Remaining (%) 78 | 100 31 . . . 72 54 100 95 . . 96 . . Volleys Fired 204 | . 58 30 5 . 7 33 . 14 20 5 . 32 . Largest 4 | . 2 2 2 . 2 2 . 3 3 3 . 4 . Hottest 157 | . 66 66 53 . 63 66 . 105 145 155 . 157 . Shots Fired 453 | . 110 51 10 . 11 56 . 31 60 16 1 107 . Gun 211 | . 78 2 5 . . 4 . 11 23 16 1 71 . Cannon 156 | . 26 48 . . . . . 14 36 . . 32 . Launcher 86 | . 6 1 5 . 11 52 . 6 1 . . 4 . Special . | . . . . . . . . . . . . . . Kinetic 318 | . 79 50 5 . . 4 . 25 56 6 . 93 . Thermal 19 | . . . . . . . . . 3 5 1 10 . Explosive 86 | . 6 1 5 . 11 52 . 6 1 . . 4 . Electromagnetic 30 | . 25 . . . . . . . . 5 . . . Robot Hit Streak 11 | . 8 10 3 . 6 11 . 8 4 5 8 7 . Robot Miss Streak 6 | . 3 3 1 . 1 2 . 3 6 3 . 6 . Penetration Max 1 | . . . . . . . . . . . . 1 . Secondary Targets 2 | . 2 . . . . . . . . . . . . Max Gunslinging Chain 1 | . 1 . . . . . . . . . . . . Shots Hit Robots 279 | . 78 32 5 . 6 28 1 21 30 9 1 67 1 Core Hits 209 | . 28 16 12 . 10 63 . 14 15 6 3 42 . Critical Kills 2 | . . . . . . . . . . . . 2 . Critical Parts Destroyed 9 | . 1 . . . . . . 2 . . . 6 . Critical Strikes 22 | . 2 1 . . . . . 3 5 . . 11 . Destroy 9 | . 1 . . . . . . . . . . 8 . Blast 8 | . 1 1 . . . . . 1 5 . . . . Smash 5 | . . . . . . . . 2 . . . 3 . Melee Attacks 99 | . . . . . . . 2 16 16 . . 64 1 Impact 99 | . . . . . . . 2 16 16 . . 64 1 Slashing . | . . . . . . . . . . . . . . Piercing . | . . . . . . . . . . . . . . Sneak Attacks 18 | . . . . . . . 1 7 1 . . 8 1 Combat Hostiles . | . . . . . . . . . . . . . . Follow-up Attacks . | . . . . . . . . . . . . . . Damage Inflicted 10972 | 2 1237 825 251 . 438 2272 78 1786 1104 166 35 2707 71 Guns 1861 | . 568 13 18 . . 24 . 83 279 166 35 675 . Cannons 2441 | . 396 624 . . . . . 252 619 . . 550 . Explosions 4640 | . 273 188 233 . 438 2248 . 613 63 . . 584 . Melee 2028 | . . . . . . . 78 838 143 . . 898 71 Ramming 2 | 2 . . . . . . . . . . . . . Kinetic 3602 | . 681 637 18 . . 24 . 335 833 37 . 1037 . Thermal 582 | . 46 . . . . . . 111 65 77 35 248 . Explosive 4423 | . 227 188 233 . 438 2248 . 502 63 . . 524 . Electromagnetic 335 | . 283 . . . . . . . . 52 . . . Impact 2028 | . . . . . . . 78 838 143 . . 898 71 Slashing . | . . . . . . . . . . . . . . Piercing . | . . . . . . . . . . . . . . Highest Corruption 16 | . . . . . . . . . 5 5 5 15 16 Average Corruption 7 | . . . . . . . . . 2 5 5 14 15 Corruption Purged . | . . . . . . . . . . . . . . Corruption Blocked . | . . . . . . . . . . . . . . Effects 71 | . . . . . . . . . 4 28 6 27 6 Message Errors 14 | . . . . . . . . . 1 8 1 4 . Matter Fused 15 | . . . . . . . . . 1 7 1 4 2 Heat Flow Errors 14 | . . . . . . . . . 1 3 1 6 3 Energy Discharges 8 | . . . . . . . . . 1 3 1 3 . Data Loss (minor) 8 | . . . . . . . . . . 5 1 2 . Data Loss (major) 3 | . . . . . . . . . . 1 . 2 . Misfires 5 | . . . . . . . . . . 1 1 3 . Alerts 1 | . . . . . . . . . . . . 1 . Misdirections 1 | . . . . . . . . . . . . . 1 Weapon Failures 2 | . . . . . . . . . . . . 2 . Overload Shots . | . . . . . . . . . . . . . . Overflow Damage 1771 | . . . 3 . 18 65 38 648 151 . . 779 69 Projectiles 89 | . . . . . . . . 49 38 . . 2 . Explosions 230 | . . . 3 . 18 65 . 44 . . . 100 . Melee 1452 | . . . . . . . 38 555 113 . . 677 69 Knockbacks 30 | . 7 2 . . . . 1 7 6 . . 7 . Impact 7 | . . . . . . . 1 3 . . . 3 . Kinetic 21 | . 6 2 . . . . . 3 6 . . 4 . Secondary 2 | . 1 . . . . . . 1 . . . . . Self-Inflicted Damage 723 | . 60 . 67 . 90 126 . 81 . . . 299 . Shots 20 | . 2 . 2 . 3 5 . 3 . . . 5 . Rammed 1 | 1 . . . . . . . . . . . . . Targets Rammed 1 | 1 . . . . . . . . . . . . . Kicked . | . . . . . . . . . . . . . . Crushed . | . . . . . . . . . . . . . . Highest Temperature 677 | . 106 27 25 . 3 19 . 403 364 319 236 677 160 Average Temperature 113 | . 31 11 14 . 2 7 . 216 135 128 99 164 80 Received Heat Transfer 963 | . 318 114 57 . . 108 . 81 9 . . 276 . Effects 25 | . . . . . . . . 7 6 2 . 10 . Shutdowns 2 | . . . . . . . . 1 1 . . . . Energy Bleed 6 | . . . . . . . . 2 1 1 . 2 . Interference 4 | . . . . . . . . 1 3 . . . . Matter Decay 5 | . . . . . . . . 2 1 . . 2 . Short Circuit 3 | . . . . . . . . 1 . . . 2 . Damage (minor) 2 | . . . . . . . . . . 1 . 1 . Damage (core) 3 | . . . . . . . . . . . . 3 . Siege Activations . | . . . . . . . . . . . . . . Martial Activations . | . . . . . . . . . . . . . . Shielding Activations . | . . . . . . . . . . . . . . Robots Disrupted . | . . . . . . . . . . . . . . Combat Hostiles . | . . . . . . . . . . . . . . Robots Corrupted 11 | . . . . . . . . 6 . . . 4 1 Combat Hostiles . | . . . . . . . . . . . . . . Parts Fried 23 | . 1 . . . . . . 10 3 1 . 6 2 Impact Corruptions 43 | . . . . . . . 1 19 3 . . 16 4 Robots Melted . | . . . . . . . . . . . . . . Combat Hostiles . | . . . . . . . . . . . . . . Parts Melted . | . . . . . . . . . . . . . . Heat Transferred 950 | . 50 . . . . . . 50 125 175 75 475 . Parts Sabotaged . | . . . . . . . . . . . . . . Parts Stolen . | . . . . . . . . . . . . . . Parts Stripped . | . . . . . . . . . . . . . . Power Chain Reactions 1 | . 1 . . . . . . . . . . . . Alert | -11 -10 -9 -9 -9 -8 -8 -7 -6 -5 -5 -5 -4 -4 ------- Run | Yrd Mat Mat Min Exi Min Mat Fac Fac Fac Upp Upp Fac Upp Maximum Alert Level 2 | . . . . . . 2 1 . . . . 2 . Low Security (%) 88 | 100 100 100 100 . 100 55 44 100 100 . . 54 . Level 1 5 | . . . . . . 22 55 . . . . 18 . Level 2 6 | . . . . . . 21 . . . . . 26 . Level 3 . | . . . . . . . . . . . . . . Level 4 . | . . . . . . . . . . . . . . Level 5 . | . . . . . . . . . . . . . . High Security . | . . . . . . . . . . . . . . Max Security . | . . . . . . . . . . . . . . Peak Influence 575 | . 144 112 96 . 115 506 220 160 73 . . 575 . Initial 220 | . . . 31 . . 19 220 83 68 . . . . Average 82 | . 37 25 28 . 20 252 197 83 24 . . 218 . Influence Increases 3609 | . 388 360 105 . 174 757 . 287 273 60 . 1190 15 Destroy 0b10 Robot/C 1400 | . 240 180 60 . 100 280 . 80 120 40 . 300 . Destroy 0b10 Robot/NC 220 | . 15 25 10 . . 50 . 60 10 . . 50 . Destroy Leader 370 | . 42 74 10 . 20 94 . 10 40 20 . 60 . Successful Hack 33 | . 17 . . . . . . . . . . 16 . Disable Machine 555 | . 30 60 . . . 120 . 45 15 . . 285 . Destroy Structure 686 | . 29 21 25 . 54 183 . 32 58 . . 284 . Partial Spotted 90 | . . . . . . . . 45 15 . . 30 . Lose Combat Pursuer 255 | . 15 . . . . 30 . 15 15 . . 165 15 Influence Decreases 3303 | . 388 280 185 . 123 322 316 317 391 82 . 600 299 Entered New Map 734 | . . . 49 . . 32 266 87 72 9 . . 219 Time Decay 2124 | . 348 270 116 . 108 180 50 230 319 73 . 380 50 Lost Part 445 | . 40 10 20 . 15 110 . . . . . 220 30 Squads Dispatched 23 | . 3 2 . . . 3 . 4 5 . . 6 . Investigation 6 | . 2 1 . . . 1 . . 1 . . 1 . Extermination 7 | . . . . . . . . 1 3 . . 3 . Reinforcement 10 | . 1 1 . . . 2 . 3 1 . . 2 . Assault . | . . . . . . . . . . . . . . Garrison . | . . . . . . . . . . . . . . Intercept . | . . . . . . . . . . . . . . Searches Triggered . | . . . . . . . . . . . . . . Construction Impeded 2 | . . . . . . . . 1 . . . 1 . Haulers Reinforced . | . . . . . . . . . . . . . . Active Scanning Responses . | . . . . . . . . . . . . . . Cargo Convoy Interrupts 1 | . . . . . . . . . 1 . . . . Stealth | -11 -10 -9 -9 -9 -8 -8 -7 -6 -5 -5 -5 -4 -4 --------- Run | Yrd Mat Mat Min Exi Min Mat Fac Fac Fac Upp Upp Fac Upp Distress Signals 10 | . 2 . . . . 2 . 1 1 . . 4 . Communications Jammed . | . . . . . . . . . . . . . . Distress Signals . | . . . . . . . . . . . . . . Times Spotted 146 | . 27 16 3 . 5 20 . 9 11 4 . 45 6 Peak Tracking Total 17 | . 6 4 3 . 4 5 . 4 3 1 . 17 5 Tactical Retreats 17 | . 1 . . . . 2 . 1 4 2 . 6 1 Traps | -11 -10 -9 -9 -9 -8 -8 -7 -6 -5 -5 -5 -4 -4 ------- Run | Yrd Mat Mat Min Exi Min Mat Fac Fac Fac Upp Upp Fac Upp Traps Triggered 3 | . . 1 . . . . . . . . . 2 . Indirectly . | . . . . . . . . . . . . . . Trap Hack Attempts . | . . . . . . . . . . . . . . Triggered . | . . . . . . . . . . . . . . Disarmed . | . . . . . . . . . . . . . . Reprogrammed . | . . . . . . . . . . . . . . Reused . | . . . . . . . . . . . . . . Traps Extracted . | . . . . . . . . . . . . . . Installed . | . . . . . . . . . . . . . . Triggered . | . . . . . . . . . . . . . . Machines | -11 -10 -9 -9 -9 -8 -8 -7 -6 -5 -5 -5 -4 -4 ---------- Run | Yrd Mat Mat Min Exi Min Mat Fac Fac Fac Upp Upp Fac Upp Machines Disabled 37 | . 2 4 . . . 8 . 3 1 . . 19 . Max in Single Turn 5 | . 1 2 . . . 2 . 2 1 . . 5 . Garrison Access 1 | . . . . . . . . . 1 . . . . Machines Repaired . | . . . . . . . . . . . . . . Machines Dismantled . | . . . . . . . . . . . . . . Machines Sabotaged . | . . . . . . . . . . . . . . Overloaded Fab Kills . | . . . . . . . . . . . . . . Hacking | -11 -10 -9 -9 -9 -8 -8 -7 -6 -5 -5 -5 -4 -4 --------- Run | Yrd Mat Mat Min Exi Min Mat Fac Fac Fac Upp Upp Fac Upp Machines Accessed 18 | . 4 3 . 1 1 1 . 2 3 . . 3 . Terminals 13 | . 4 3 . . 1 1 . 1 1 . . 2 . Fabricators 2 | . . . . . . . . 1 1 . . . . Repair Stations . | . . . . . . . . . . . . . . Recycling Units . | . . . . . . . . . . . . . . Scanalyzers . | . . . . . . . . . . . . . . Garrison Access 2 | . . . . . . . . . 1 . . 1 . Total Hacks 28 | . 7 5 . 1 1 2 . 2 5 . . 5 . Successful 9 | . 2 1 . 1 . . . 1 1 . . 3 . Failed 19 | . 5 4 . . 1 2 . 1 4 . . 2 . Catastrophic 5 | . 1 . . . 1 . . 1 1 . . 1 . Database Lockouts . | . . . . . . . . . . . . . . Manual 14 | . 4 3 . 1 1 2 . 1 2 . . . . Terminals 22 | . 7 5 . . 1 2 . 1 2 . . 4 . Fabricators 2 | . . . . . . . . 1 1 . . . . Repair Stations . | . . . . . . . . . . . . . . Recycling Units . | . . . . . . . . . . . . . . Scanalyzers . | . . . . . . . . . . . . . . Garrison Access 3 | . . . . . . . . . 2 . . 1 . Terminal Hacks 7 | . 2 1 . 1 . . . . . . . 3 . Open Door 1 | . . . . . . . . . . . . 1 . Level Access Points 1 | . 1 . . . . . . . . . . . . Branch Access Points 1 | . . 1 . . . . . . . . . . . Alert Level 1 | . . . . . . . . . . . . 1 . Reinforcement Status 1 | . . . . . . . . . . . . 1 . Registered Components 1 | . 1 . . . . . . . . . . . . Proto ID Catalog 1 | . . . . 1 . . . . . . . . . Fabricator Hacks 1 | . . . . . . . . 1 . . . . . Build 1 | . . . . . . . . 1 . . . . . Repair Station Hacks . | . . . . . . . . . . . . . . Recycling Unit Hacks . | . . . . . . . . . . . . . . Scanalyzer . | . . . . . . . . . . . . . . Garrison Access Hacks 1 | . . . . . . . . . 1 . . . . Seal Access 1 | . . . . . . . . . 1 . . . . Unauthorized Hacks . | . . . . . . . . . . . . . . Terminals . | . . . . . . . . . . . . . . Fabricators . | . . . . . . . . . . . . . . Repair Stations . | . . . . . . . . . . . . . . Recycling Units . | . . . . . . . . . . . . . . Scanalyzers . | . . . . . . . . . . . . . . Garrison Access . | . . . . . . . . . . . . . . Data Cores Recovered 1 | . . . . . . . . . 1 . . . . Used . | . . . . . . . . . . . . . . Hacking Detections 10 | . 3 1 . . 1 1 . 2 1 . . 1 . Full Trace Events 4 | . 2 . . . . 1 . . 1 . . . . Feedback Events . | . . . . . . . . . . . . . . Feedback Blocked . | . . . . . . . . . . . . . . Robot Schematics Acquired . | . . . . . . . . . . . . . . Robots Built . | . . . . . . . . . . . . . . Authchips . | . . . . . . . . . . . . . . Time . | . . . . . . . . . . . . . . Total Robot Build Rating . | . . . . . . . . . . . . . . Part Schematics Acquired . | . . . . . . . . . . . . . . Parts Built 2 | . . . . . . . . 2 . . . . . Authchips . | . . . . . . . . . . . . . . Time 58 | . . . . . . . . 58 . . . . . Total Part Build Rating 14 | . . . . . . . . 14 . . . . . Parts Repaired . | . . . . . . . . . . . . . . Time . | . . . . . . . . . . . . . . Parts Recycled . | . . . . . . . . . . . . . . Recycled Matter . | . . . . . . . . . . . . . . Retrieved Matter . | . . . . . . . . . . . . . . Retrieved Components . | . . . . . . . . . . . . . . Parts Scanalyzed . | . . . . . . . . . . . . . . Part Schematics Acquired . | . . . . . . . . . . . . . . Parts Damaged . | . . . . . . . . . . . . . . Bothacking | -11 -10 -9 -9 -9 -8 -8 -7 -6 -5 -5 -5 -4 -4 ------------ Run | Yrd Mat Mat Min Exi Min Mat Fac Fac Fac Upp Upp Fac Upp Used RIF Installer . | . . . . . . . . . . . . . . Robots Hacked . | . . . . . . . . . . . . . . Non-combat . | . . . . . . . . . . . . . . Combat . | . . . . . . . . . . . . . . Robot Hacks Applied . | . . . . . . . . . . . . . . Relay Couplers Released . | . . . . . . . . . . . . . . Fabnet Peak Effective % . | . . . . . . . . . . . . . . Robots Rewired . | . . . . . . . . . . . . . . Allies Hacked . | . . . . . . . . . . . . . . Hacks Repelled . | . . . . . . . . . . . . . . Allies | -11 -10 -9 -9 -9 -8 -8 -7 -6 -5 -5 -5 -4 -4 -------- Run | Yrd Mat Mat Min Exi Min Mat Fac Fac Fac Upp Upp Fac Upp Total Allies . | . . . . . . . . . . . . . . Largest Group . | . . . . . . . . . . . . . . Highest-Rated Group . | . . . . . . . . . . . . . . Highest-Rated Ally . | . . . . . . . . . . . . . . Total Orders . | . . . . . . . . . . . . . . Ally Attacks . | . . . . . . . . . . . . . . Total Damage . | . . . . . . . . . . . . . . Kills . | . . . . . . . . . . . . . . Allies Corrupted . | . . . . . . . . . . . . . . Allies Melted . | . . . . . . . . . . . . . . Intel | -11 -10 -9 -9 -9 -8 -8 -7 -6 -5 -5 -5 -4 -4 ------- Run | Yrd Mat Mat Min Exi Min Mat Fac Fac Fac Upp Upp Fac Upp Active Infowar (turns) 2161 | . . . . . . . . . 687 960 250 264 . ECM 2161 | . . . . . . . . . 687 960 250 264 . Robot Analysis Total . | . . . . . . . . . . . . . . Derelict Logs Recovered 5 | . . . 1 . . . . . . 3 1 . . Drone Launches . | . . . . . . . . . . . . . . Drone Recoveries . | . . . . . . . . . . . . . . Exploration | -11 -10 -9 -9 -9 -8 -8 -7 -6 -5 -5 -5 -4 -4 ------------- Run | Yrd Mat Mat Min Exi Min Mat Fac Fac Fac Upp Upp Fac Upp Turns Passed 8324 | 100 1387 861 406 424 701 374 108 497 945 960 250 1197 114 Spaces Moved 6725 | 64 607 471 203 215 334 352 186 844 905 842 236 1148 318 Core 40 | 17 . . . . . . . . . . . . 23 Treads 401 | 47 354 . . . . . . . . . . . . Legs . | . . . . . . . . . . . . . . Wheels 714 | . 253 397 . . . . . . . . . 64 . Hover . | . . . . . . . . . . . . . . Flight 5570 | . . 74 203 215 334 352 186 844 905 842 236 1084 295 Fastest Speed 5 | 50 100 115 192 190 189 42 42 42 35 106 106 5 31 Average Speed 97 | 130 143 158 192 191 189 62 47 42 78 111 106 62 33 Slowest Speed 434 | 160 240 357 192 192 190 190 50 42 121 121 106 434 120 Overloaded Moves 433 | . . . . . . . . . . . . 188 245 Propulsion Burnouts 1 | . . . . . . . . . . . . . 1 Robots Hopped 7 | . . . . . . 1 1 3 . . . 2 . Potential Cave-ins 5 | . . . . . . 2 . . . . . 3 . Cave-ins Triggered 1 | . . . . . . . . . . . . 1 . Exploration Rate (%) 41 | 4 67 43 49 60 72 30 4 27 19 91 26 28 58 Regions Visited 13 Branch Regions 6 Pre-discovered Areas . | . . . . . . . . . . . . . . Known Exits Taken 11 | . 1 1 1 1 1 1 1 1 1 1 1 . . Unknown Exits Taken 2 | 1 . . . . . . . . . . . 1 . Scrap Searched 6 | . . . 1 . 1 . . . . 3 . . 1 Spaces Dug 83 | . . . . . . 5 . 7 13 . . 58 . Terrain Destroyed 651 | . 26 21 31 . 69 240 . 43 35 . . 186 . Melee 66 | . . . . . . . . 7 13 . . 46 . Projectile 26 | . 1 3 . . . . . 3 10 . . 9 . AOE 559 | . 25 18 31 . 69 240 . 33 12 . . 131 . Terrain Rammed . | . . . . . . . . . . . . . . Walls Destroyed . | . . . . . . . . . . . . . . Machines Disabled . | . . . . . . . . . . . . . . Actions | -11 -10 -9 -9 -9 -8 -8 -7 -6 -5 -5 -5 -4 -4 --------- Run | Yrd Mat Mat Min Exi Min Mat Fac Fac Fac Upp Upp Fac Upp Total 8055 | 80 1027 536 211 233 392 443 204 945 1082 852 235 1492 323 Wait 713 | . 313 17 . . 47 35 . 46 97 . . 156 2 Move 6699 | 64 606 470 202 214 333 349 183 837 904 841 235 1143 318 Hop 7 | . . . . . . 1 1 3 . . . 2 . Pick Up 117 | 10 25 7 2 5 2 13 8 11 9 . . 25 . Fast Attach 14 | . 2 1 . 1 . . 2 1 1 1 . 5 . Attach 73 | 6 6 5 1 3 3 8 2 2 4 4 . 27 2 Detach 5 | . . . . . . . . . . . . 5 . Swap 42 | . 6 3 . 2 . 3 . 5 15 . . 8 . Drop 76 | . 11 3 1 8 . 1 6 10 16 1 . 19 . Fire 204 | . 58 30 5 . 7 33 . 14 20 5 . 32 . Melee 99 | . . . . . . . 2 16 16 . . 64 1 Ram . | . . . . . . . . . . . . . . Kick . | . . . . . . . . . . . . . . Crush . | . . . . . . . . . . . . . . Escape Stasis 6 | . . . . . . . . . . . . 6 . Rewire . | . . . . . . . . . . . . . . Trap . | . . . . . . . . . . . . . . Miscellaneous . | . . . . . . . . . . . . . . Route ------- -11/Scrapyard -10/Materials (discovered 4 exits: *Mat x3 / [*Sub]) -9/Materials (discovered 5 exits: *Mat / *Min x2 / *Sto x2) -9/Mines -9/Exiles -8/Mines -8/Materials -7/Factory -6/Factory -5/Factory (discovered 2 exits: *Upp x2) -5/Upper Caves -5/Upper Caves -4/Factory (discovered 3 exits: Res / [*Upp] / [*Ext]) -4/Upper Caves History --------- Turn | Location | Event 13 | -11/Scrapyard | Discovered new exit (range 15) 101 | -11/Scrapyard | Entered Materials 311 | -10/Materials | Build established: Mutant 712 | -10/Materials | Identified exit to Materials 855 | -10/Materials | Lost 3 parts (1p1n1u) 1027 | -10/Materials | Discovered new exit (range 10) 1301 | -10/Materials | Derelicts attacked the area 1325 | -10/Materials | Core integrity fell below 50% 1488 | -10/Materials | Entered another Materials area 1488 | -9/Materials | Evolved 2 slots: Propulsion x1, Utility x1 1750 | -9/Materials | Discovered new exit (range 15) 1918 | -9/Materials | Discovered new exit (range 5) 2044 | -9/Materials | Identified exit to Mines 2044 | -9/Materials | Identified exit to Storage 2349 | -9/Materials | Entered Mines 2583 | -9/Mines | A weapon hastily lodged in a ceiling crevice suddenly fell to the ground 2747 | -9/Mines | Deemed a non-threat by the Exiles lab entrance 2747 | -9/Mines | Discovered new exit (range 5) 2753 | -9/Mines | Identified exit to Exiles 2755 | -9/Mines | Entered Exiles 2800 | -9/Exiles | Met 8R-AWN 2834 | -9/Exiles | Met EX-HEX 2888 | -9/Exiles | Met EX-BIN 2909 | -9/Exiles | Aligned with FarCom system 2911 | -9/Exiles | Given EX-Vault access code 2965 | -9/Exiles | Opened EX-Vault 2984 | -9/Exiles | Found Flying Fortress v7 3038 | -9/Exiles | Warned to stay clear of 0b10 Research branches 3092 | -9/Exiles | Met EX-DEC 3160 | -9/Exiles | Discovered new exit (range 10) 3177 | -9/Exiles | Identified exit to Mines 3179 | -9/Exiles | Left Exiles lab with Flying Fortress v7 3179 | -9/Exiles | Entered Mines 3255 | -8/Mines | Lost 3 parts (1n2w) 3854 | -8/Mines | Discovered new exit (range 5) 3878 | -8/Mines | Identified exit to Materials 3880 | -8/Mines | Entered Materials 3880 | -8/Materials | Evolved 2 slots: Propulsion x2 4012 | -8/Materials | Lost 4 parts (1p2n1w) 4064 | -8/Materials | Lost 6 parts (1p3n2w) 4196 | -8/Materials | Discovered new exit (range 16) 4240 | -8/Materials | Identified exit to Factory 4254 | -8/Materials | Entered Factory 4254 | -7/Factory | Evolved 2 slots: Utility x1, Weapon x1 4269 | -7/Factory | Discovered new exit (range 7) 4362 | -7/Factory | Identified exit to Factory 4362 | -7/Factory | Entered another Factory area 4362 | -6/Factory | Evolved 2 slots: Utility x1, Weapon x1 4681 | -6/Factory | Build established: Skirmisher 4734 | -6/Factory | Fabricated Rnf. Antimatter Reactor? 4845 | -6/Factory | Discovered new exit (range 15) 4859 | -6/Factory | Identified exit to Factory 4859 | -6/Factory | Spotted B-75 Beast 4859 | -6/Factory | Entered another Factory area 4859 | -5/Factory | Evolved 2 slots: Power x1, Propulsion x1 4889 | -5/Factory | Discovered new exit (range 12) 4900 | -5/Factory | Identified exit to Upper Caves 5682 | -5/Factory | Discovered exit to Upper Caves (range 8) 5781 | -5/Factory | Cargo convoy interrupted 5804 | -5/Factory | Entered Upper Caves 6019 | -5/Upper Caves | Learned Factory security intel 6100 | -5/Upper Caves | Build established: Bomber 6338 | -5/Upper Caves | Learned Factory stockpile data 6733 | -5/Upper Caves | Discovered new exit (range 5) 6742 | -5/Upper Caves | Identified exit to Upper Caves 6764 | -5/Upper Caves | Entered another Upper Caves area 6880 | -5/Upper Caves | Discovered new exit (range 7) 6975 | -5/Upper Caves | Learned location of 1 exit from Factory 7013 | -5/Upper Caves | Identified exit to Factory 7014 | -5/Upper Caves | Entered Factory 7014 | -4/Factory | Evolved 2 slots: Propulsion x1, Utility x1 7015 | -4/Factory | Identified exit to Research 7453 | -4/Factory | Core integrity fell below 50% 7483 | -4/Factory | Build established: Hacker-Skirmisher 7550 | -4/Factory | Crushed by falling debris 7550 | -4/Factory | System corruption reached 10% 7609 | -4/Factory | Lost 8 parts (1p2n3u2w) 7901 | -4/Factory | Discovered new exit (range 5) 7904 | -4/Factory | Lost 3 parts (1p1u1w) 8164 | -4/Factory | Build established: Sprinter 8200 | -4/Factory | Core integrity fell below 20% 8201 | -4/Factory | Discovered new exit (range 15) 8211 | -4/Factory | Entered Upper Caves 8225 | -4/Upper Caves | Lost 7 parts (1p4n1u1w) 8314 | -4/Upper Caves | Released all parts (6) 8325 | -4/Upper Caves | Destroyed by P-70 Sage with Tesla Rifle Last Messages --------------- 08226_ System corrupted: Matter fused (-6). 08245_ System corrupted: Heat flow error (+157). 08255_ Searching scrap... 08255_ Found Adv. Targeting Computer. 08255_ Found Hvy. Riot Gun. 08255_ Found 64 Matter. 08256_ Acquired 64 matter. 08264_ System corrupted: Heat flow error (+191). 08290_ System corrupted: Heat flow error (+168). 08293_ Cld. Field Propulsion Drive destroyed. 08293_ Cld. Field Propulsion Drive burned out. 08307_ System corrupted: Matter fused (-5). 08311_ Cld. Field Propulsion Drive destroyed. 08313_ Field Propulsion Array destroyed. 08314_ Released Adv. Coolant Injector. 08314_ Released Adv. Heat Sink. 08314_ Released Core Analyzer. 08314_ Released Matter Compressor. 08314_ Released Mak. Hammer. 08314_ Released Fission Core. Map ----- +----------------------------------------------------+ | ??????????????????????????????????????????# " | | ?????????????????????????????????????????## " | | ?????????????????????????????????????????# " | | ?????????????????????????????????????????# | | ?????????????????????????????????????????## | | ??????????????????????????????????????????### # | | ???????????????????????????????????????????## # | | ??????????????????????????????????????????## | | ?????????????????????????????????????????## | | ?????????????????????????????????????????# | | ?????????????????????????????????????????# | | ?????????????????????????????????????????## | | ??????????????????????????????????????????### | | ????????????????????????????????????????????## | | ?????????????????????????????????????????????### | | ?????????????????????????#######???????????????## | | ?????????????????????????# "" "#????????????????# | | ?????????????????????????# """ #???###???????##### | | ??????????????????????????" "" #### #??????## ## | | ??????????????????????????# ## #?????## | | ?????????????????????###### # #????##* | | ???????????########### # $ #???##/!! | | ??????????? ## #???## ! | | ???????????? #??????# ## | | ???????????????????# #??????# ### | | ???????????????????### @ ####???# | | ?????????????????????## ## ###?# ## | | ??????????????????????# ### s### ## # | | ??????????????????????# #?## sss ## ## | | ??????????????????????# ??### #######? | | ?????????????????????? ????# #?????? | | ????????????????????? #???# ##?????? | | ???????????????????? #####??# ##??????? | | ??????????????????? ???????# #???????? | | ?????????????????? ????????# #??????? | | ????????????????? # #????????# ?????? | | ??????????????????# ?????????# ????? | | ??????????????????#??????????## ???? | | ??????????????????????????????# ## ??? | | ??????????????????????????????# ?# ### # ?? | | ??????????????????????????????# ?#####?? ## ? | | ??????????????????????????????# ???????? #? ? | | ?????????????????????????????? ????????? #?? ??? | | ????????????????????????????????????????? #?????? | | ?????????????????????????????????????????###?????? | | ?????????????????????????????????????????????????? | | ?????????????????????????????????????????????????? | | ?????????????????????????????????????????????????? | | ?????????????????????????????????????????????????? | | ?????????????????????????????????????????????????? | +----------------------------------------------------+ Best States ------------- Heat Dissipation 76 Coolant Potential 100 Energy Generation 49 Energy Capacity 900 Matter Stores 300 Matter Capacity 550 Sight Range 16 Terrain Scan Density 10 ECM Strength 2 Propulsion Shielding 33 Evasion (%) 65 Targeting Accuracy 5 Core Analysis 6 Recoil Reduction 2 Energy Filtering 30 Offensive Hacking 10 Defensive Hacking 10 Item Schematics ----------------- None Robot Schematics ------------------ None Fabricated ------------ Rnf. Antimatter Reactor | x2 | -6/Factory | Preloaded Repaired ---------- Nothing Alien Tech Used ----------------- None Achievements -------------- Just What I Needed Speed Demon Supersonic Whoosh! Challenges ------------ None Game ------ Seed ThermicFrostAutogun Manual? 0 Play Time 01:24:09 Cumulative 67.4 hours Start 2025.08.03 @ 11:31:28 End 2025.08.03 @ 13:15:29 Sessions 1 Manual Loads 0 Difficulty Rogue Special Mode None Game No. 124 Rogue 124 Adventurer 0 Explorer 0 Win Type - Total 0 Types 0/0/0/0/0/0/0/0/0/0 Lore% 14 Gallery% 38 Achievement% 31 Wizard Run 0 Options --------- Layout 2 ASCII 0 Keyboard 0 Movement Mouse Keybinds 0 Fullscreen 2 Font 32/SmallcapsGlow Map View 50x44 Zoom Use 0% Tactical HUD 1 Map Filters NONE Filters NONE Steam 1 RUN: 1fb1d5fd-bbc2-4f7b-8be6-23e1c92ebc74